bitfinex/quotes_ETHUSD_20250821
["timestamp","ask_amount","ask_price","bid_price","bid_amount"]
[1755784900583,0.02,4284.8,4284.7,2.33388568]
[1755784900804,0.02,4284.8,4284.7,11.42388568]
[1755784901012,0.02,4284.8,4284.7,11.88368568]
[1755784901224,0.02,4284.8,4284.7,12.54368568]
[1755784901375,0.02,4284.8,4284.7,13.22342428]
[1755784901920,0.02,4286.8,4284.7,13.22342428]
[1755784901921,0.02,4286.8,4285.7,2.33334111]
[1755784902104,0.02,4286.8,4286.7,2.33279679]
[1755784902281,0.02,4286.8,4286.7,1.796]
[1755784902475,0.02,4286.8,4286.7,6.11232796]
[1755784902698,0.02,4286.8,4286.7,1.796]
[1755784903015,0.02,4286.8,4286.7,6.6646]
[1755784903185,0.02,4286.8,4286.7,1.9128]
[1755784903379,0.02,4286.8,4286.7,1.796]
[1755784903730,0.02,4286.8,4286.7,6.5468]
[1755784904025,0.02,4286.8,4286.7,9.96949679]
[1755784904249,0.02,4286.8,4286.7,1.796]
[1755784904407,0.02,4286.8,4286.7,6.087]
[1755784904607,0.02,4286.8,4286.7,1.796]
[1755784904793,0.02,4286.8,4286.7,6.085]
[1755784904994,0.02,4286.8,4286.7,1.796]
[1755784905237,0.02,4286.8,4286.7,1.81932796]
[1755784905528,0.02,4286.8,4286.7,1.796]
[1755784905833,0.02,4286.8,4286.7,6.084]
[1755784906534,0.02,4286.8,4286.7,9.48499679]
[1755784906732,0.02,4286.8,4286.7,10.26179679]
[1755784906935,0.02,4286.8,4286.7,3.1812]
[1755784907101,0.02,4286.8,4286.7,1.9128]
[1755784907301,0.02,4286.8,4286.7,1.796]
[1755784907523,0.02,4286.8,4286.7,6.08]
[1755784907802,0.3245,4286.8,4286.7,1.796]
[1755784908240,0.3245,4286.8,4286.0,1.795]
[1755784908426,0.3245,4286.8,4286.1,4.283]
[1755784908621,0.02010094,4286.7,4286.0,1.795]
[1755784908846,3.68010094,4286.7,4286.0,1.795]
[1755784909033,0.66,4286.5,4285.2,1.795]
[1755784909213,0.3045,4286.4,4285.4,4.283]
[1755784909405,0.3045,4286.4,4285.5,0.0233345]
[1755784909605,0.02010094,4286.3,4285.2,1.795]
[1755784909801,0.3045,4286.2,4285.3,4.282]
[1755784910000,0.3045,4286.2,4285.4,4.282]
[1755784910001,0.02010094,4286.1,4285.4,4.282]
[1755784910309,0.3045,4286.2,4285.5,0.0233345]
[1755784910504,0.02010094,4286.1,4285.2,1.795]
[1755784910707,0.3045,4286.2,4285.3,4.30433558]
[1755784910933,0.3045,4286.2,4285.3,4.281]
[1755784911316,0.34460094,4286.8,4285.4,0.02333504]
[1755784911518,0.3245,4286.8,4285.4,0.02333504]
[1755784911902,0.02010094,4286.7,4285.5,4.279]
[1755784912129,0.3245,4286.8,4285.6,0.02333395]
[1755784912332,0.02010094,4286.7,4285.2,1.795]
[1755784912606,0.66,4286.5,4285.3,4.276]
[1755784912800,0.66,4286.5,4284.8,0.02]
[1755784912801,0.66,4286.2,4284.8,0.02]
[1755784913042,3.66,4286.0,4284.8,0.02]
[1755784913256,0.02010094,4285.9,4284.8,0.02]
[1755784913451,0.479,4284.5,4284.3,4.279]
[1755784913752,0.479,4284.5,4284.4,1.795]
[1755784913919,0.479,4284.5,4284.4,2.88554049]
[1755784914105,0.479,4284.5,4284.4,2.8622]
[1755784914307,0.479,4284.5,4284.4,6.074]
[1755784914553,0.479,4284.5,4284.4,1.795]
[1755784915351,0.479,4284.5,4282.9,3.4598]
[1755784915352,0.7835,4284.5,4284.0,4.279]
[1755784915514,0.3045,4284.4,4283.7,4.277]
[1755784915710,0.479,4284.5,4283.8,0.02334376]
[1755784915947,0.479,4284.5,4284.0,0.66]
[1755784916151,0.02,4286.8,4284.1,6.09314212]
[1755784916335,0.02,4286.8,4284.9,3.66]
[1755784916643,0.02,4286.8,4285.4,2.99346058]
[1755784916842,0.02,4286.8,4285.5,0.66]
[1755784917232,0.02,4286.8,4285.6,1.14313395]
[1755784917543,0.02,4286.8,4285.7,4.317]
[1755784917746,0.02,4286.8,4285.8,2.35661495]
[1755784917913,0.02,4286.8,4285.9,0.66]
[1755784918112,0.02,4286.8,4286.7,2.99279679]
[1755784918308,0.02,4286.8,4286.7,7.78779679]
[1755784918653,0.02,4286.8,4286.7,5.455]
[1755784919154,0.02,4286.8,4286.6,4.319]
[1755784919356,0.02,4286.8,4286.1,4.317]
[1755784919509,0.02,4286.8,4286.2,3.0]
[1755784919849,0.0192,4286.8,4286.3,0.66]
[1755784920255,0.0192,4286.8,4286.3,3.0]
[1755784920455,0.002,4287.7,4286.7,2.99279679]
[1755784920663,0.002,4287.7,4287.6,2.99230711]
[1755784920867,0.02,4287.8,4287.7,5.99225272]
[1755784921154,0.02,4287.8,4287.7,12.74003918]
[1755784921560,0.02,4287.8,4287.7,17.06003918]
[1755784921964,0.02,4287.8,4287.7,8.65798646]
[1755784922119,0.02,4287.8,4287.6,1.795]
[1755784922717,0.02,4287.8,4287.7,0.02332252]
[1755784923246,0.02,4287.8,4287.7,3.59217524]
[1755784923418,0.02,4287.8,4287.7,3.56885272]
[1755784924316,0.02,4287.8,4287.7,6.74131932]
[1755784924551,0.02,4287.8,4287.7,8.12818652]
[1755784925332,0.02,4287.8,4287.7,7.88231681]
[1755784925736,0.02,4287.8,4287.7,3.33073029]
[1755784925975,0.02,4287.8,4287.7,3.21393029]
[1755784926265,0.02,4287.8,4287.7,0.21393029]
[1755784926470,0.02,4287.8,4287.7,7.63873029]
[1755784926824,0.02,4287.8,4287.7,7.52193029]
[1755784927022,0.02,4287.8,4287.7,4.52193029]
[1755784927534,0.3455,4287.8,4287.7,0.21393029]
[1755784927950,0.3455,4287.8,4286.2,4.315]
[1755784928149,0.3455,4287.8,4286.0,1.794]
[1755784928150,0.68010094,4287.7,4286.0,1.794]
[1755784928349,0.60416009,4287.6,4286.2,3.0]
[1755784928558,0.02010094,4287.5,4286.1,4.314]
[1755784928863,0.3222,4287.5,4286.2,3.02333068]
[1755784929069,0.02,4287.8,4286.4,0.66]
[1755784929285,0.022,4287.8,4286.8,3.0]
[1755784929471,0.022,4287.8,4287.1,0.66]
[1755784929672,0.022,4287.8,4287.2,3.0]
[1755784929855,0.022,4287.8,4287.4,3.0]
[1755784930249,0.3222,4287.7,4287.3,4.315]
[1755784930498,0.022,4287.8,4287.3,4.315]
[1755784930499,0.022,4287.8,4287.3,4.7465]
[1755784930650,0.022,4287.8,4287.4,2.35572246]
[1755784930851,0.022,4287.8,4287.7,2.33225272]
[1755784931054,0.022,4287.8,4287.4,3.02332415]
[1755784931055,0.022,4287.8,4287.4,3.0]
[1755784931282,0.022,4287.8,4285.8,4.39002505]
[1755784931283,0.022,4287.8,4287.5,4.312]
[1755784931484,0.3442,4287.8,4287.5,4.312]
[1755784931699,0.022,4287.8,4287.6,0.02332307]
[1755784931859,0.022,4287.8,4287.7,0.02332252]
[1755784932190,0.022,4287.8,4287.6,0.43174395]
[1755784932393,0.022,4287.8,4287.5,4.312]
[1755784932690,0.022,4287.8,4287.5,4.313]
[1755784933257,0.022,4287.8,4287.7,2.33225272]
[1755784933590,0.022,4287.8,4287.7,5.99225272]
[1755784933755,0.022,4287.8,4287.7,7.78625272]
[1755784933953,0.022,4287.8,4287.7,8.24745272]
[1755784935912,0.00132591,4287.8,4287.7,8.42140806]
[1755784936061,0.00132591,4287.8,4287.7,10.2596983]
[1755784937480,0.00132591,4287.8,4287.7,10.3764983]
[1755784938125,0.002,4288.7,4288.6,5.99176327]
[1755784938410,0.002,4288.7,4288.2,5.33196795]
[1755784938567,0.002,4288.7,4288.6,2.99176327]
[1755784938907,0.002,4288.7,4288.6,3.14011763]
[1755784939071,0.002,4288.7,4288.6,9.7878809]
[1755784939273,0.002,4288.7,4288.6,8.0928]
[1755784939473,0.002,4288.7,4288.6,10.42456327]
[1755784939906,0.002,4288.7,4288.6,3.1168]
[1755784940221,0.3242,4288.7,4288.1,1.794]
[1755784940511,0.3242,4288.7,4288.2,4.317]
[1755784940808,0.3222,4288.6,4288.3,4.317]
[1755784941019,0.02010094,4288.5,4287.2,1.794]
[1755784941309,0.3222,4288.4,4287.3,4.317]
[1755784941469,3.68010094,4288.3,4287.2,0.001]
[1755784941688,0.57953009,4288.2,4286.6,4.318]
[1755784942035,3.66,4287.4,4286.8,0.0144]
[1755784942207,11.39937951,4287.5,4285.8,0.001]
[1755784942208,0.66,4287.2,4285.8,0.001]
[1755784942411,0.02010094,4287.1,4285.8,0.02433286]
[1755784942730,0.02010094,4287.1,4285.8,0.001]
[1755784942880,0.3005,4288.0,4286.2,2.33306891]
[1755784943086,0.3005,4288.0,4286.3,6.79933014]
[1755784943295,0.02010094,4287.9,4286.4,4.329]
[1755784943495,0.01930094,4287.9,4286.5,4.329]
[1755784943793,0.3005,4287.8,4286.5,4.35232905]
[1755784944122,0.3005,4287.8,4286.5,4.96686196]
[1755784944323,0.3005,4287.8,4286.5,4.94353291]
[1755784944485,0.3005,4287.8,4286.6,0.02332851]
[1755784945325,0.3005,4287.8,4286.6,0.68332851]
[1755784945545,0.3005,4287.8,4286.7,2.44954411]
[1755784945728,0.3005,4288.4,4286.8,0.8053077]
[1755784945893,0.3005,4288.4,4286.3,1.793]
[1755784945894,0.3005,4287.7,4286.3,1.793]
[1755784946223,0.3005,4287.6,4286.5,3.0]
[1755784946430,0.31980094,4287.6,4286.5,4.33]
[1755784946610,0.31980094,4287.6,4286.3,1.793]
[1755784946787,0.31980094,4287.6,4286.5,0.001]
[1755784947415,0.31980094,4287.6,4286.5,0.02432905]
[1755784947815,0.3005,4287.6,4286.5,0.001]
[1755784948125,0.01930094,4287.5,4286.5,0.001]
[1755784948493,0.3005,4287.4,4286.5,0.001]
[1755784948698,0.67930094,4287.3,4286.5,0.001]
[1755784949024,0.01930094,4287.3,4285.9,0.02333232]
[1755784949225,0.3215,4287.8,4285.9,0.18183323]
[1755784949429,0.022,4287.8,4286.4,0.66]
[1755784949606,0.022,4287.8,4287.0,0.1168]
[1755784949800,0.022,4287.8,4287.4,0.1168]
[1755784950004,0.022,4287.8,4287.5,6.53000361]
[1755784950194,0.022,4287.8,4287.6,3.0]
[1755784950396,0.022,4287.8,4287.5,2.17168]
[1755784950592,0.022,4287.8,4287.7,3.0]
[1755784951091,0.022,4287.8,4287.7,3.02332252]
[1755784951310,0.022,4287.8,4287.7,5.99225272]
[1755784951520,0.022,4287.8,4287.7,6.57025272]
[1755784952099,0.022,4287.8,4287.7,10.44605272]
[1755784952335,0.022,4287.8,4287.7,11.90329344]
[1755784952519,0.022,4287.8,4287.7,12.36449344]
[1755784953241,0.022,4287.8,4287.7,23.76387295]
[1755784953394,0.022,4287.8,4287.7,11.90329344]
[1755784953599,0.022,4287.8,4287.7,6.56904072]
[1755784953800,0.022,4287.8,4287.7,0.1168]
[1755784954000,0.022,4287.8,4287.7,4.4518]
[1755784954201,0.3215,4287.8,4287.7,4.335]
[1755784954512,0.3215,4287.8,4287.5,1.794]
[1755784954713,0.2995,4287.7,4287.5,1.794]
[1755784954925,0.2995,4287.6,4287.5,1.794]
[1755784955236,0.2995,4287.6,4285.9,0.1168]
[1755784955455,0.01930094,4287.5,4285.8,6.13]
[1755784955600,0.21128009,4287.4,4285.8,6.13]
[1755784955798,0.31880094,4287.3,4285.8,6.13]
[1755784956002,0.31880094,4287.3,4286.0,0.001]
[1755784956311,0.31880094,4287.3,4286.0,0.02433177]
[1755784956523,0.2995,4287.3,4286.0,0.02433177]
[1755784956698,0.2995,4287.3,4286.1,0.61543318]
[1755784956904,0.2995,4287.3,4286.2,0.02333068]
[1755784957136,0.2995,4287.3,4286.3,4.333]
[1755784957438,0.2995,4287.3,4286.2,4.332]
[1755784957439,0.01930094,4287.2,4286.2,4.332]
[1755784958037,0.2995,4287.1,4286.2,4.332]
[1755784958215,0.01930094,4287.0,4286.2,4.332]
[1755784958410,0.31880094,4287.0,4286.2,4.332]
[1755784959847,0.2995,4287.0,4286.3,0.02333014]
[1755784960054,0.04130094,4287.8,4286.2,4.332]
[1755784960055,0.2995,4287.6,4286.2,4.332]
[1755784960252,0.01930094,4287.5,4286.2,4.332]
[1755784960752,0.2995,4287.4,4286.0,0.001]
[1755784960921,3.67930094,4287.3,4286.0,0.001]
[1755784961131,0.57728009,4287.2,4286.0,0.001]
[1755784961446,0.01930094,4287.1,4286.0,0.001]
[1755784962122,0.2995,4287.0,4286.0,0.001]
[1755784962323,0.67930094,4286.9,4286.0,0.001]
[1755784962623,0.01930094,4286.9,4285.8,0.001]
[1755784962828,0.66,4286.7,4285.8,0.001]
[1755784963026,0.31780094,4286.6,4285.8,0.001]
[1755784963538,2.11180094,4286.6,4285.8,0.001]
[1755784963741,2.11180094,4286.6,4286.1,0.001]
[1755784963920,0.2985,4286.5,4286.1,0.001]
[1755784964455,0.2985,4287.2,4286.1,0.001]
[1755784964820,0.31780094,4287.2,4286.1,0.001]
[1755784966328,3.0,4287.1,4286.1,0.001]
[1755784966650,0.01930094,4287.0,4286.1,0.001]
[1755784967997,5.38064057,4286.2,4286.1,0.001]
[1755784968279,3.2985,4286.2,4286.1,0.001]
[1755784968446,6.31006985,4286.2,4286.1,0.001]
[1755784968647,3.9585,4286.2,4286.1,0.001]
[1755784968870,3.31700094,4286.2,4286.1,0.001]
[1755784969641,0.33178009,4286.9,4286.1,0.001]
[1755784969842,0.04050094,4287.8,4286.1,0.001]
[1755784970054,0.022,4287.8,4286.2,0.66]
[1755784970231,0.022,4287.8,4286.4,0.1168]
[1755784970437,0.022,4287.8,4286.5,4.34732905]
[1755784970750,0.022,4287.8,4286.6,1.795]
[1755784971640,0.022,4287.8,4286.7,2.33278886]
[1755784971840,0.022,4287.8,4286.7,1.09015318]
[1755784972051,0.022,4287.8,4286.6,1.795]
[1755784972255,0.022,4287.8,4286.7,4.318]
[1755784973282,0.01850094,4287.7,4286.7,4.318]
[1755784973438,0.01850094,4287.7,4286.6,1.795]
[1755784973638,0.2985,4287.6,4286.6,1.795]
[1755784973880,0.01850094,4287.5,4286.6,1.795]
[1755784974192,0.01850094,4287.5,4286.6,2.406]
[1755784974367,0.022,4287.8,4286.6,2.406]
[1755784974788,0.022,4287.8,4287.0,0.66]
[1755784974945,0.022,4287.8,4286.8,0.66]
[1755784974946,0.022,4287.8,4287.7,2.33225272]
[1755784975252,0.022,4287.8,4287.7,8.43825272]
[1755784975447,0.022,4287.8,4287.7,9.96579207]
[1755784975894,0.022,4287.8,4287.7,1.794]
[1755784977291,0.3205,4287.8,4286.7,1.794]
[1755784977595,0.01850094,4287.7,4286.7,1.794]
[1755784978272,0.3205,4287.8,4286.8,0.02332742]
[1755784979097,0.01850094,4287.7,4286.7,1.794]
[1755784979246,0.01850094,4287.7,4286.8,0.02332742]
[1755784979447,0.022,4287.8,4287.6,2.33230457]
[1755784979676,0.022,4287.8,4286.9,2.33268795]
[1755784979677,0.022,4287.8,4287.7,6.57612252]
[1755784979860,0.022,4287.8,4287.7,8.88505272]
[1755784980190,0.022,4287.8,4287.7,1.794]
[1755784980559,0.022,4287.8,4287.7,8.24837524]
[1755784980794,0.022,4287.8,4287.7,9.71512307]
[1755784981163,0.022,4287.8,4287.7,14.03412307]
[1755784981368,0.022,4287.8,4287.7,6.113]
[1755784981897,0.022,4287.8,4287.7,1.794]
[1755784982200,0.472,4287.8,4286.9,6.115]
[1755784982401,0.01850094,4287.7,4286.9,6.115]
[1755784982901,0.022,4287.8,4286.9,6.115]
[1755784983263,0.472,4287.8,4286.9,6.115]
[1755784983465,0.01850094,4287.7,4286.9,1.794]
[1755784983701,0.45,4287.6,4286.1,0.001]
[1755784983872,0.66,4287.4,4286.1,0.001]
[1755784984075,0.01850094,4287.3,4286.1,0.001]
[1755784984260,0.45,4287.2,4286.1,0.001]
[1755784984462,0.01850094,4287.1,4286.1,0.001]
[1755784984689,0.45,4287.0,4286.1,0.001]
[1755784984874,0.01850094,4286.9,4286.1,0.001]
[1755784985365,0.45,4286.8,4286.1,0.001]
[1755784985561,0.01850094,4286.7,4286.1,0.001]
[1755784985766,0.22625009,4286.6,4286.1,0.001]
[1755784985978,0.01850094,4286.5,4286.1,0.001]
[1755784986378,0.01850094,4287.2,4286.1,0.001]
[1755784986578,0.46850094,4287.3,4286.1,0.001]
[1755784986779,0.01850094,4287.5,4286.1,0.46036446]
[1755784987104,0.01850094,4288.0,4286.1,0.43703323]
[1755784987601,0.01850094,4288.0,4286.2,0.02333068]
[1755784987786,0.46690094,4287.7,4286.2,4.315]
[1755784988099,0.46690094,4287.7,4286.3,1.794]
[1755784988275,0.4484,4287.7,4286.4,0.0233296]
[1755784988480,0.4484,4287.7,4286.4,4.313]
[1755784988481,0.01850094,4287.6,4286.4,4.313]
[1755784988677,0.01850094,4287.6,4286.3,1.794]
[1755784988879,0.66,4287.4,4286.1,0.001]
[1755784989103,3.66,4287.2,4286.1,0.001]
[1755784989280,0.46690094,4287.1,4286.1,0.001]
[1755784989903,0.66,4287.0,4286.1,0.001]
[1755784990075,0.01850094,4286.9,4286.1,0.001]
[1755784990279,0.01850094,4287.0,4286.1,0.001]
[1755784990476,0.4484,4286.8,4286.1,0.001]
[1755784990674,0.01850094,4286.7,4286.1,0.001]
[1755784990913,0.67850094,4286.7,4286.1,0.001]
[1755784991208,0.4484,4286.6,4286.1,0.001]
[1755784991406,0.01690094,4286.5,4286.1,0.001]
[1755784991610,0.46530094,4286.5,4286.1,0.001]
[1755784991795,0.4484,4286.4,4286.1,0.001]
[1755784992003,0.01690094,4286.3,4286.1,0.001]
[1755784992398,0.4484,4286.2,4286.1,0.001]
[1755784993380,0.4484,4286.2,4285.6,0.001]
[1755784993381,0.66,4286.1,4285.6,0.001]
[1755784993624,0.66,4285.9,4285.6,0.001]
[1755784993927,3.66,4285.7,4285.6,0.001]
[1755784994076,2.6014851,4285.7,4285.2,0.001]
[1755784994276,0.66,4285.5,4285.2,0.001]
[1755784994481,0.66,4285.3,4285.2,0.001]
[1755784994878,0.4484,4285.3,4285.2,0.001]
[1755784996814,3.0,4285.6,4285.2,0.001]
[1755784996815,0.01770094,4285.6,4285.2,0.001]
[1755784997015,0.01770094,4286.4,4285.2,0.001]
[1755784997318,0.22601009,4286.3,4285.2,0.02433613]
[1755784997518,0.02,4286.8,4285.2,0.02433613]
[1755784997519,0.01770094,4286.6,4286.1,0.001]
[1755784998381,0.01770094,4286.7,4286.1,0.001]
[1755784998798,0.02,4286.8,4286.1,0.001]
[1755784999118,0.46610094,4286.7,4286.1,0.001]
[1755785000384,0.66,4286.5,4286.1,0.001]
[1755785000692,0.34861009,4286.6,4284.9,0.001]
[1755785000693,3.66,4286.0,4284.9,0.001]
[1755785000893,0.66,4285.0,4284.3,0.001]
[1755785001096,1.81270094,4284.9,4284.3,0.001]
[1755785001300,0.66,4284.8,4284.3,0.001]
[1755785001495,0.01770094,4284.7,4284.3,0.001]
[1755785001712,0.66,4284.6,4284.3,0.001]
[1755785001908,0.01770094,4284.5,4284.3,0.001]
[1755785002110,30.0,4284.4,4284.3,0.001]
[1755785002314,5.36213963,4284.4,4284.3,0.001]
[1755785002625,3.0,4284.4,4284.3,0.001]
[1755785003334,3.4484,4284.4,4284.3,0.001]
[1755785004024,4.1084,4284.4,4284.3,0.001]
[1755785004230,33.66,4284.3,4283.8,0.02]
[1755785004441,4.1084,4284.4,4283.8,0.02]
[1755785004442,0.01770094,4284.2,4283.8,0.02]
[1755785004641,0.4484,4284.1,4283.8,0.02]
[1755785004827,0.01770094,4284.0,4283.8,0.02]
[1755785005149,0.4484,4283.9,4283.8,0.02]
[1755785005303,3.66,4283.8,4282.8,0.02]
[1755785005624,0.97404094,4283.7,4282.8,0.02]
[1755785005831,1.795,4283.9,4282.8,0.02]
[1755785006028,0.01770094,4283.7,4282.8,0.02]
[1755785006619,1.795,4283.9,4282.8,0.02]
[1755785006949,0.01770094,4284.4,4282.9,0.02334866]
[1755785007239,0.01770094,4284.4,4283.0,0.18383487]
[1755785007737,0.01770094,4285.1,4283.1,0.28684757]
[1755785007938,0.01770094,4285.3,4284.3,2.33408285]
[1755785008105,0.03770094,4285.8,4284.4,2.05174878]
[1755785008304,0.02,4285.8,4284.4,2.02840829]
[1755785009041,0.02,4285.8,4284.5,0.02333994]
[1755785009042,0.01770094,4285.7,4284.5,0.02333994]
[1755785009742,0.01770094,4285.7,4284.4,2.02840829]
[1755785009942,0.01770094,4285.7,4284.5,0.20284083]
[1755785010241,0.01770094,4285.7,4284.4,1.795]
[1755785010242,0.46610094,4285.7,4284.4,1.795]
[1755785010444,0.01770094,4285.7,4284.5,0.02333994]
[1755785010738,0.02,4284.8,4284.4,1.795]
[1755785012923,0.02,4284.8,4284.5,0.02333994]
[1755785013235,0.02,4284.8,4284.7,2.33388568]
[1755785013436,0.02,4285.8,4284.7,2.33388568]
[1755785013437,0.02,4285.8,4284.7,0.2435]
[1755785013608,0.02,4285.8,4285.0,2.33366827]
[1755785013813,0.02,4285.8,4284.8,4.291]
[1755785014164,0.02,4285.8,4284.9,2.78721453]
[1755785014512,0.02,4285.8,4284.9,0.45345]
[1755785014720,0.02,4285.8,4284.6,4.287]
[1755785015364,0.0192,4285.8,4284.6,4.287]
[1755785016640,0.0192,4285.8,4284.8,0.66]
[1755785016814,0.0192,4285.8,4285.3,0.66]
[1755785017020,0.0192,4285.8,4285.7,2.33334111]
[1755785017217,0.002,4286.1,4285.7,2.33334111]
[1755785017218,0.002,4286.1,4286.0,2.33317778]
[1755785017737,0.002,4286.1,4285.8,4.285]
[1755785018057,0.002,4286.1,4285.8,4.284]
[1755785018249,0.002,4286.1,4285.7,0.68454262]
[1755785018468,0.002,4286.1,4285.4,1.795]
[1755785018977,0.01970094,4286.1,4285.4,1.795]
[1755785019968,0.002,4286.1,4285.5,0.0233345]
[1755785020167,0.002,4286.1,4285.4,1.795]
[1755785021331,0.4309,4286.0,4284.8,0.02]
[1755785021536,0.44860094,4286.0,4284.8,0.02]
[1755785021841,0.79054725,4285.9,4284.8,0.02]
[1755785022145,0.66,4285.7,4284.8,0.02]
[1755785022336,0.01770094,4285.6,4284.8,0.02]
[1755785022538,0.4309,4285.5,4284.8,0.02]
[1755785022738,0.67770094,4285.4,4284.8,0.02]
[1755785023033,0.66,4285.2,4284.8,0.02]
[1755785023264,0.66,4285.0,4283.8,0.02]
[1755785023489,0.01770094,4284.9,4283.8,0.04334376]
[1755785024138,0.01770094,4284.9,4283.8,0.02]
[1755785024337,0.01770094,4284.9,4283.9,0.02334321]
[1755785024778,0.01770094,4285.5,4283.9,0.63457753]
[1755785025380,0.01770094,4285.6,4283.9,0.63457753]
[1755785025675,0.15025669,4286.1,4283.9,0.61123432]
[1755785026447,0.66,4285.9,4283.8,3.02]
[1755785026662,0.14825669,4285.8,4283.8,3.02]
[1755785026979,0.14825669,4285.8,4283.9,0.02334321]
[1755785027154,0.002,4285.6,4283.8,3.02]
[1755785027333,0.01970094,4285.6,4283.8,3.02]
[1755785027532,0.18147009,4285.5,4283.9,0.9089]
[1755785027734,0.01770094,4285.4,4283.9,0.9089]
[1755785029030,0.002,4285.6,4284.0,2.57856022]
[1755785029231,0.002,4285.6,4284.0,0.2443]
[1755785029831,0.01770094,4285.5,4283.9,0.9089]
[1755785030031,0.01770094,4285.5,4283.8,0.02]
[1755785030032,0.01770094,4285.5,4284.0,4.262]
[1755785030742,0.67770094,4285.5,4284.0,4.262]
[1755785030942,0.56152586,4285.4,4284.0,4.262]
[1755785031142,0.1483268,4285.3,4284.0,4.262]
[1755785031377,0.12392268,4285.2,4284.0,4.262]
[1755785031584,0.12392268,4285.2,4283.8,0.021]
[1755785031585,0.67770094,4285.1,4283.8,0.021]
[1755785031870,0.67770094,4285.1,4283.9,0.02334321]
[1755785031871,0.44860094,4285.1,4283.9,0.02334321]
[1755785032074,0.01770094,4285.1,4283.9,0.02334321]
[1755785032386,0.01770094,4285.5,4283.9,0.18393432]
[1755785032543,0.01770094,4285.5,4283.8,0.021]
[1755785032544,0.14834375,4285.5,4283.8,0.021]
[1755785033362,1.0909,4285.4,4283.8,0.021]
[1755785033575,5.33369027,4285.1,4283.8,0.021]
[1755785033741,5.60340419,4285.0,4283.8,0.021]
[1755785033940,1.35530589,4284.9,4283.8,0.021]
[1755785034169,0.01770094,4284.8,4283.9,0.02334321]
[1755785034372,0.01770094,4285.5,4283.9,0.02334321]
[1755785034578,0.01770094,4285.5,4283.8,4.28]
[1755785034993,0.4309,4285.4,4283.8,4.28]
[1755785035161,0.01770094,4285.3,4283.8,0.021]
[1755785035358,0.14849542,4285.3,4283.8,0.021]
[1755785035682,0.4309,4285.2,4283.8,0.021]
[1755785035872,0.01770094,4285.1,4283.8,0.021]
[1755785036605,3.0,4284.8,4283.8,0.021]
[1755785036750,3.0,4284.6,4283.8,0.021]
[1755785037103,0.14858974,4284.5,4283.8,0.021]
[1755785037446,0.4309,4284.4,4283.8,0.021]
[1755785037678,0.01770094,4284.3,4283.8,0.021]
[1755785037976,0.4309,4284.2,4283.8,0.021]
[1755785038182,0.01770094,4284.1,4283.8,0.021]
[1755785038393,0.01770094,4284.4,4283.8,0.021]
[1755785038549,1.795,4285.4,4283.8,0.021]
[1755785038550,0.66,4285.2,4283.8,0.021]
[1755785038754,0.1797,4285.3,4283.9,0.02334321]
[1755785039073,0.002,4285.6,4284.0,5.57856642]
[1755785039263,0.002,4285.6,4284.1,0.02334212]
[1755785039461,0.002,4285.6,4284.2,0.2443]
[1755785039678,0.002,4285.6,4284.3,3.1919291]
[1755785039882,0.002,4285.6,4284.3,0.8578518]
[1755785040050,0.002,4285.6,4284.2,0.3611]
[1755785040383,0.002,4285.6,4284.7,0.66]
[1755785040691,0.002,4286.5,4286.4,2.33296005]
[1755785040983,0.022,4287.8,4286.4,9.047]
[1755785041192,0.022,4287.8,4286.5,3.21762905]
[1755785041346,0.002,4288.3,4287.2,2.33252472]
[1755785041549,0.02,4288.8,4288.5,2.33176729]
[1755785041748,0.02,4288.8,4287.4,3.0]
[1755785041749,0.02,4288.8,4288.6,11.4060809]
[1755785041949,0.02,4288.8,4288.6,9.051]
[1755785042155,0.02,4288.8,4288.6,12.21306327]
[1755785042369,0.02,4288.8,4288.6,11.29397224]
[1755785042577,0.02,4288.8,4288.6,6.37797224]
[1755785042796,0.02,4288.8,4288.6,4.9118]
[1755785042967,0.02,4288.8,4288.6,9.058]
[1755785043371,0.02,4288.8,4288.6,1.795]
[1755785044391,0.02,4288.8,4286.6,1.09676291]
[1755785044392,0.02,4288.8,4288.0,4.261]
[1755785044690,0.02,4288.8,4288.1,4.28432035]
[1755785044897,0.02,4288.8,4288.1,4.261]
[1755785045302,0.02,4288.8,4288.2,0.0233198]
[1755785045605,0.02,4288.8,4288.3,2.33192143]
[1755785045893,0.02,4288.8,4288.4,2.3551907]
[1755785046093,0.02,4288.8,4288.4,0.19361872]
[1755785046282,0.02,4288.8,4288.6,6.10856327]
[1755785046592,0.02,4288.8,4288.6,0.98020432]
[1755785046798,0.02,4288.8,4288.6,6.7298809]
[1755785047098,0.02,4288.8,4288.6,7.53686327]
[1755785047313,0.02,4288.8,4288.6,4.3748]
[1755785047460,0.02,4288.8,4288.6,7.53686327]
[1755785047661,0.02,4288.8,4288.6,4.3748]
[1755785047861,0.02,4288.8,4288.0,1.795]
[1755785047862,0.02,4288.8,4288.5,4.256]
[1755785048078,0.02,4288.8,4288.6,0.02331763]